fUST/lending_fUST_20251231
["ID","MTS","AMOUNT","RATE_DAILY","PERIOD"]
[400175843,1767169846846,-3500.0,0.0001656,2]
[400175844,1767169846856,-3500.0,0.0001656,2]
[400175845,1767169846866,-3500.0,0.0001656,2]
[400175846,1767169846876,-3500.0,0.0001656,2]
[400175847,1767169846886,-3500.0,0.0001656,2]
[400175848,1767169846895,-3088.85772816,0.0001656,2]
[400175849,1767169846904,-3076.89571839,0.0001656,2]
[400175850,1767169846914,-1000.0,0.00016751,2]
[400175851,1767169846924,-244.0,0.00016751,2]
[400175852,1767169846933,-2376.15781898,0.0001677,2]
[400175853,1767169846943,-524.6000668,0.00017001,2]
[400175854,1767169846952,-8175.49,0.00017018,2]
[400175855,1767169846961,-350.38,0.00017032,30]
[400175856,1767169846971,-1384.295523,0.00017108,2]
[400175857,1767169846980,-1384.295523,0.00017108,2]
[400175858,1767169846990,-1384.295523,0.00017108,2]
[400175859,1767169846999,-1384.295523,0.00017108,2]
[400175860,1767169847008,-151.0,0.00017108,2]
[400175861,1767169847018,-158.312179,0.00017108,2]
[400175862,1767169847027,-347.53001016,0.00017108,2]
[400175863,1767169847036,-4000.0,0.00017108,2]
[400175864,1767169847047,-2030.88192264,0.00017108,2]
[400175865,1767169847056,-4000.0,0.00017108,2]
[400175866,1767169847065,-1361.9082954,0.00017108,2]
[400175867,1767169847075,-3517.91360693,0.00017108,2]
[400175868,1767169847084,-4000.0,0.00017108,2]
[400175869,1767169847094,-808.80107116,0.00017126,2]
[400175870,1767169847103,-151.0,0.00017176,2]
[400175871,1767169847112,-151.0,0.00017176,2]
[400175872,1767169847123,-151.0,0.00017176,2]
[400175873,1767169847131,-2376.15781898,0.00017232,2]
[400175874,1767169847141,-500.0,0.00017322,2]
[400175875,1767169847151,-2376.15781898,0.00017342,2]
[400175876,1767169847160,-1613.0,0.00017475,2]
[400175877,1767169847170,-1000.0,0.00017515,2]
[400175878,1767169847179,-151.0,0.00017515,2]
[400175879,1767169847188,-151.0,0.00017515,2]
[400175880,1767169847197,-151.0,0.00017515,2]
[400175881,1767169847207,-151.0,0.00017515,2]
[400175882,1767169847216,-257.39953178,0.00017515,2]
[400175883,1767169847226,-151.0,0.00017515,2]
[400175884,1767169847235,-1500.58333146,0.00017515,2]
[400175885,1767169847244,-151.0,0.00017515,2]
[400175886,1767169847253,-151.0,0.00017515,2]
[400175887,1767169847263,-151.0,0.00017515,2]
[400175888,1767169847272,-151.0,0.00017515,2]
[400175889,1767169847281,-151.0,0.00017515,2]
[400175890,1767169847290,-151.0,0.00017515,2]
[400175891,1767169847299,-162.62076672,0.00017515,2]
[400175892,1767169847309,-151.0,0.00017515,2]
[400175893,1767169847318,-151.0,0.00017515,2]
[400175894,1767169847328,-151.0,0.00017515,2]
[400175895,1767169847337,-2436.59773527,0.00017515,2]
[400175896,1767169847346,-151.0,0.00017515,2]
[400175897,1767169847355,-151.0,0.00017515,2]
[400175898,1767169847365,-500.0,0.00017515,2]
[400175899,1767169847376,-514.84070869,0.00017515,2]
[400175900,1767169847385,-500.0,0.00017515,2]
[400175901,1767169847394,-500.0,0.00017515,2]
[400175902,1767169847404,-250.0,0.00017515,2]
[400175903,1767169847413,-151.50260762,0.00017515,2]
[400175904,1767169847422,-500.0,0.00017515,2]
[400175905,1767169847431,-250.0,0.00017515,2]
[400175906,1767169847440,-500.0,0.00017515,2]
[400175907,1767169847449,-250.0,0.00017515,2]
[400175908,1767169847458,-500.0,0.00017515,2]
[400175909,1767169847467,-250.0,0.00017515,2]
[400175910,1767169847476,-500.0,0.00017515,2]
[400175911,1767169847486,-250.0,0.00017515,2]
[400175912,1767169847495,-500.0,0.00017515,2]
[400175913,1767169847503,-250.0,0.00017515,2]
[400175914,1767169847512,-500.0,0.00017515,2]
[400175915,1767169847522,-250.0,0.00017515,2]
[400175916,1767169847532,-500.0,0.00017515,2]
[400175917,1767169847541,-250.0,0.00017515,2]
[400175918,1767169847550,-500.0,0.00017515,2]
[400175919,1767169847560,-250.0,0.00017515,2]
[400175920,1767169847570,-500.0,0.00017515,2]
[400175921,1767169847580,-500.0,0.00017515,2]
[400175922,1767169847590,-500.0,0.00017515,2]
[400175923,1767169847600,-186.0,0.00017603,2]
[400175924,1767169847609,-422.38060374,0.00017656,2]
[400175925,1767169847620,-2968.24952751,0.00017656,2]
[400175926,1767169847633,-3508.31856485,0.00017656,2]
[400175927,1767169847642,-2376.15781898,0.00017708,2]
[400175928,1767169847652,-17693.77277791,0.000178,3]
[400175929,1767169847661,-700.76,0.00017843,30]
[400175930,1767169847670,-2296.36705751,0.00018,2]
[400175931,1767169847680,-236.89877417,0.00018002,2]
[400175932,1767169847689,-234.78758345,0.00018002,2]
[400175933,1767169847699,-469.33615695,0.00018002,2]
[400175934,1767169847708,-2376.15781898,0.00018024,2]
[400175935,1767169847719,-151.0,0.00018063,2]
[400175936,1767169847729,-533.88981491,0.00018063,2]
[400175937,1767169847739,-2376.15781898,0.00018137,2]
[400175938,1767169847751,-500.0,0.00018234,2]
[400175939,1767169847771,-235.02002084,0.0001839,2]
[400175940,1767169847781,-1000.0,0.00018426,2]
[400175941,1767169847791,-492.0,0.00018426,2]
[400175942,1767169847801,-2376.15781898,0.00018458,2]
[400175943,1767169847812,-553.64373807,0.00018611,2]
[400175944,1767169847822,-1051.13,0.00018654,30]
[400175945,1767169847832,-2376.15781898,0.00018732,2]
[400175946,1767169847846,-194.747586,0.00018879,2]
[400175947,1767169847856,-194.747586,0.00018879,2]
[400175948,1767169847866,-194.747586,0.00018879,2]
[400175949,1767169847877,-194.747586,0.00018879,2]
[400175950,1767169847886,-302.9394212,0.000189,2]
[400175951,1767169847897,-302.90913937,0.000189,2]
[400175952,1767169847907,-2376.15781898,0.00018985,2]
[400175953,1767169847917,-585.91695772,0.00019001,2]
[400175954,1767169847929,-302.9394212,0.00019089,2]
[400175955,1767169847940,-302.90913937,0.00019089,2]
[400175956,1767169847950,-1000.0,0.000191,2]
[400175957,1767169847962,-574.12855637,0.00019159,2]
[400175958,1767169847976,-151.0,0.00019178,2]
[400175959,1767169847986,-156.190121,0.00019178,2]
[400175960,1767169847996,-156.190121,0.00019178,2]
[400175961,1767169848006,-156.190121,0.00019178,2]
[400175962,1767169848015,-156.190121,0.00019178,2]
[400175963,1767169848025,-150.0,0.00019178,2]
[400175964,1767169848034,-500.0,0.00019194,2]
[400175965,1767169848044,-2376.15781898,0.00019199,2]
[400175966,1767169848053,-162.4,0.000192,2]
[400175967,1767169848063,-166.25,0.000192,2]
[400175968,1767169848072,-1380.56,0.000192,2]
[400175969,1767169848082,-14885.98,0.000192,2]
[400175970,1767169848092,-166.47,0.000192,2]
[400175971,1767169848102,-2258.0,0.00019205,2]
[400175972,1767169848112,-808.80107116,0.00019215,2]
[400175973,1767169848122,-302.9394212,0.00019278,2]
[400175974,1767169848131,-302.90913937,0.00019278,2]
[400175975,1767169848141,-62025.04066446,0.00019301,2]
[400175976,1767169848151,-300.0,0.00019315,2]
[400175977,1767169848161,-186.0,0.00019378,2]
[400175978,1767169848171,-450.0,0.00019452,2]
[400175979,1767169848180,-1401.51,0.00019466,30]
[400175980,1767169848189,-302.9394212,0.00019467,2]
[400175981,1767169848199,-302.90913937,0.00019467,2]
[400175982,1767169848314,-600.0,0.00019589,2]
[400175983,1767169848325,-2376.15781898,0.00019607,2]
[400175984,1767169848335,-302.9394212,0.00019656,2]
[400175985,1767169848344,-302.90913937,0.00019656,2]
[400175986,1767169848354,-595.37131296,0.00019707,2]
[400175987,1767169848365,-406.55106819,0.00019726,2]
[400175988,1767169848375,-1041.66666667,0.00019741,2]
[400175989,1767169848384,-454.40913181,0.00019845,4]
[400175990,1767169848394,-454.36370906,0.00019845,4]
[400175991,1767169848404,-2376.15781898,0.00019887,2]
[400175992,1767169848413,-1003.0,0.0002,2]
[400175993,1767169848422,-2000.0,0.0002,14]
[400175994,1767169848432,-179.55824252,0.0002,2]
[400175995,1767169848441,-210.23175629,0.0002,2]
[400175996,1767169848451,-1162.7799583,0.0002,2]
[400175997,1767169848460,-418.94279744,0.0002,2]
[400175998,1767169848470,-394.73148624,0.0002,2]
[400175999,1767169848480,-156288.08542,0.0002,2]
[400176000,1767169848490,-454.40913181,0.00020034,4]
[400176001,1767169848500,-454.36370906,0.00020034,4]
[400176002,1767169848509,-2376.15781898,0.000202,2]
[400176003,1767169848519,-500.0,0.00020204,2]
[400176004,1767169848528,-454.40913181,0.00020223,4]
[400176005,1767169848538,-454.36370906,0.00020223,4]
[400176006,1767169848547,-617.40005154,0.00020255,2]
[400176007,1767169848557,-1000.0,0.00020269,2]
[400176008,1767169848567,-791.0,0.00020269,2]
[400176009,1767169848577,-1751.89,0.00020277,30]
[400176010,1767169848586,-2376.15781898,0.00020364,2]
[400176011,1767169848596,-454.40913181,0.00020412,4]
[400176012,1767169848606,-454.36370906,0.00020412,4]
[400176013,1767169848616,-454.40913187,0.00020601,4]
[400176014,1767169848626,-194.73401537,0.00020601,4]
[400176015,1767169848639,-1380.56,0.000207,2]
[400176016,1767169848649,-14885.98,0.000207,2]
[400176017,1767169848659,-2376.15781898,0.00020751,2]
[400176018,1767169848673,-640.24385345,0.00020803,2]
[400176019,1767169848683,-2376.15781898,0.00020891,2]
[400176020,1767169848693,-166.25,0.000209,2]
[400176021,1767169848706,-501.19,0.00021,7]
[400176022,1767169848716,-10000.0,0.00021,5]
[400176023,1767169848726,-30030.19718622,0.00021,2]
[400176024,1767169848736,-647.23384864,0.00021001,2]
[400176025,1767169848746,-2102.27,0.00021088,30]
[400176026,1767169848757,-3162.0,0.00021106,2]
[400176027,1767169848778,-2376.15781898,0.00021125,2]
[400176028,1767169848799,-186.0,0.00021153,2]
[400176029,1767169848819,-8846.86,0.000212,3]
[400176030,1767169848839,-500.0,0.00021267,2]
[400176031,1767169848850,-1419.12334533,0.00021267,2]
[400176032,1767169848860,-663.93287602,0.00021351,2]
[400176033,1767169848872,-2376.15781898,0.00021415,2]
[400176034,1767169848884,-111233.6717484,0.000215,2]
[400176035,1767169848895,-156.190121,0.000215,2]
[400176036,1767169848904,-156.190121,0.000215,2]
[400176037,1767169848913,-156.190121,0.000215,2]
[400176038,1767169848923,-156.190121,0.000215,2]
[400176039,1767169848933,-2000.0,0.00021576,7]
[400176040,1767169848942,-184.80545578,0.00021687,5]
[400176041,1767169848952,-2376.15781898,0.00021719,2]
[400176042,1767169848961,-6750.64958641,0.00021817,2]
[400176043,1767169848971,-688.49839244,0.00021899,2]
[400176044,1767169848981,-2452.65,0.00021899,30]
[400176045,1767169848991,-500.0,0.00021917,2]
[400176046,1767169849000,-277.46495324,0.00021917,2]
[400176047,1767169849010,-503.00820269,0.00021917,2]
[400176048,1767169849019,-506.55449777,0.00021917,2]
[400176049,1767169849028,-181.58814641,0.00021917,2]
[400176050,1767169849037,-500.0,0.00021917,2]
[400176051,1767169849047,-500.0,0.00021917,2]
[400176052,1767169849056,-419.55533198,0.00021917,2]
[400176053,1767169849065,-572.01801726,0.00021917,2]
[400176054,1767169849074,-793.64,0.00021917,2]
[400176055,1767169849084,-224.92658771,0.00021917,2]
[400176056,1767169849094,-3532.14,0.00021917,2]
[400176057,1767169849104,-1423.54,0.00021917,2]
[400176058,1767169849113,-500.0,0.00021917,2]
[400176059,1767169849123,-500.0,0.00021917,2]
[400176060,1767169849133,-5033.25927333,0.00021917,2]
[400176061,1767169849393,-7431.46072667,0.00021917,2]
[400176062,1767169849402,-1388.45,0.00021917,2]
[400176063,1767169849412,-388.31492034,0.00021917,2]
[400176064,1767169849421,-150.0,0.00021918,2]
[400176065,1767169849430,-124.53264426,0.00022,7]
[400176066,1767169849624,-3e-08,0.00022,7]
[400176067,1767169849638,-36.19735571,0.00022,7]
[400176068,1767169849648,-358.36397932,0.00022092,2]
[400176069,1767169849664,-2017.79383966,0.00022092,2]
[400176070,1767169849674,-647.97270599,0.00022136,2]
[400176071,1767169849686,-4303.02729401,0.00022136,2]
[400176072,1767169849695,-422.18560449,0.00022191,2]
[400176073,1767169849705,-510.62079878,0.00022191,2]
[400176074,1767169849714,-518.18840294,0.00022191,2]
[400176075,1767169849723,-793.64,0.00022191,2]
[400176076,1767169849734,-3532.14,0.00022191,2]
[400176077,1767169849743,-1423.54,0.00022191,2]
[400176078,1767169849752,-500.0,0.00022191,2]
[400176079,1767169849761,-562.74320886,0.00022191,2]
[400176080,1767169849771,-12464.72,0.00022191,2]
[400176081,1767169849781,-1388.45,0.00022191,2]
[400176082,1767169849790,-0.2386773,0.00022291,5]
[400176083,1767169850935,-184.56677848,0.00022291,5]
[400176084,1767169850946,-1000.0,0.00022296,10]
[400176085,1767169850955,-1000.0,0.00022296,10]
[400176086,1767169850964,-645.65593763,0.000223,14]
[400176087,1767169851238,5000.0,0.0001089,2]
[400176088,1767169851350,-302.90913937,0.000189,2]
[400176089,1767169851360,-302.90913937,0.00019089,2]
[400176090,1767169851369,-302.90913937,0.00019278,2]
[400176091,1767169851379,-302.90913937,0.00019467,2]
[400176092,1767169851388,-302.90913937,0.00019656,2]
[400176093,1767169851397,-454.36370906,0.00019845,4]
[400176094,1767169851406,-454.36370906,0.00020034,4]
[400176095,1767169851416,-454.36370906,0.00020223,4]
[400176096,1767169851426,-454.36370906,0.00020412,4]
[400176097,1767169851436,-454.74223193,0.00020601,4]
[400176098,1767169851445,-734.90406237,0.000223,14]
[400176099,1767169851454,-220.61760483,0.00022362,5]
[400176100,1767169851464,-370.91536587,0.00022362,5]
[400176101,1767169851473,-482.32985948,0.00022362,5]
[400176102,1767169851482,-1482.177802,0.00022362,5]
[400176103,1767169851492,-217.99967853,0.00022362,5]
[400176104,1767169851501,-871.1267154,0.00022362,5]
[400176105,1767169851510,-236.53722422,0.00022369,15]
[400176106,1767169851519,-500.0,0.00022387,2]
[400176107,1767169851529,-2376.15781898,0.00022392,2]
[400176108,1767169851539,-13933.57226644,0.000224,2]
[400176109,1767169851758,-952.40773356,0.000224,2]
[400176110,1767169851768,-123.20866644,0.00022447,2]
[400176111,1767169851779,-590.76416652,0.00022447,2]
[400176112,1767169851788,-484.85223348,0.00022465,2]
[400176113,1767169852099,-5000.0,0.00011202,2]
[400176115,1767169864817,0.01,0.000109,2]
[400176116,1767169864899,499.99,0.000109,2]
[400176117,1767169865001,500.0,0.000109,2]
[400176118,1767169865088,500.0,0.000109,2]
[400176119,1767169865170,500.0,0.000109,2]
[400176120,1767169865257,500.0,0.000109,2]
[400176121,1767169865344,500.0,0.000109,2]
[400176122,1767169865426,500.0,0.000109,2]
[400176123,1767169865509,500.0,0.000109,2]
[400176124,1767169865598,500.0,0.000109,2]
[400176125,1767169867721,3327.05058126,0.00011602,2]
[400176127,1767169912902,6672.95941874,0.00010901,2]
[400176128,1767169912988,10000.01,0.00010901,2]
[400176129,1767169913064,10000.01,0.00010901,2]
[400176130,1767169913138,10000.01,0.00010901,2]
[400176131,1767169913208,10000.01,0.00010901,2]
[400176132,1767169913279,10000.01,0.00010901,2]
[400176133,1767169913353,10000.01,0.00010901,2]
[400176134,1767169913426,10000.01,0.00010901,2]
[400176135,1767169919349,-557.58574659,0.00010901,2]
[400176137,1767169923456,-452.46709458,0.00010901,2]
[400176138,1767169925008,-227.09273059,0.00010901,2]
[400176139,1767169927105,-205.95634003,0.00010901,2]
[400176140,1767169927999,263.24802838,0.00024774,120]
[400176141,1767169928586,-343.97239722,0.00010901,2]
[400176142,1767169930154,-226.75319473,0.00010901,2]
[400176144,1767169931659,-288.76688686,0.00010901,2]
[400176146,1767169933698,-169.32352975,0.00010901,2]
[400176147,1767169936229,-161.00555681,0.00010901,2]
[400176148,1767169937601,-300.0,0.00010901,2]
[400176149,1767169940222,-247.3539234,0.00010901,2]
[400176151,1767169941705,-300.0,0.00010901,2]
[400176152,1767169944224,-420.90369427,0.00010901,2]
[400176153,1767169966191,-911.295422,0.00010901,2]
[400176154,1767169973863,-911.295422,0.00010901,2]
[400176155,1767169973901,-66.12865959,0.00010901,2]
[400176180,1767170039270,-300.0,0.00010899,2]
[400176181,1767170039292,-91.48655455,0.00010899,2]
[400176182,1767170040872,-208.51344545,0.00010899,2]
[400176183,1767170040894,-35.39754168,0.00010899,2]
[400176185,1767170043634,-161.94362483,0.00010899,2]
[400176186,1767170044930,-428.56960937,0.00010899,2]
[400176194,1767170048494,-477.44987059,0.00010899,2]
[400176199,1767170049930,-96.63935353,0.00010899,2]
[400176200,1767170049961,-185.19071711,0.00010899,2]
[400176205,1767170051454,-114.80928289,0.00010899,2]
[400176206,1767170051484,-155.20132184,0.00010899,2]
[400176214,1767170055617,-194.75379723,0.00010899,2]
[400176215,1767170055643,-151.79753616,0.000109,2]
[400176218,1767170057049,-348.20246384,0.000109,2]
[400176219,1767170057074,-12.69827813,0.000109,2]
[400176226,1767170059111,-318.08281055,0.000109,2]
[400176236,1767170060549,-169.21891132,0.000109,2]
[400176238,1767170060579,-57.97493025,0.000109,2]
[400176252,1767170062509,-151.88,0.000109,2]
[400176258,1767170063985,-290.14506975,0.000109,2]
[400176259,1767170064011,-83.04429008,0.000109,2]
[400176264,1767170066089,-326.66584626,0.000109,2]
[400176265,1767170066111,-199.34374529,0.000109,2]
[400176266,1767170066135,-13.25844701,0.000109,2]
[400176274,1767170069866,-171.12242898,0.00010901,2]
[400176278,1767170071889,-439.36248573,0.00010901,2]
[400176281,1767170073855,-500.0,0.00010901,2]
[400176282,1767170076575,5000.0,0.00010891,2]
[400176283,1767170076633,-187.84639568,0.00010901,2]
[400176285,1767170079155,-291.8784356,0.00010901,2]
[400176286,1767170080639,-459.72982767,0.00010901,2]
[400176287,1767170083386,-312.86163821,0.00010901,2]
[400176288,1767170085442,-218.16992936,0.00010901,2]
[400176289,1767170086957,-173.31490018,0.00010901,2]
[400176291,1767170088603,-278.09659584,0.00010901,2]
[400176292,1767170090723,-429.73616375,0.00010901,2]
[400176293,1767170092316,-175.77431166,0.00010901,2]
[400176294,1767170093830,-436.9597357,0.00010901,2]
[400176295,1767170095873,-229.25700954,0.00010901,2]
[400176296,1767170098709,-291.18474163,0.00010901,2]
[400176297,1767170099445,5000.0,0.00010891,2]
[400176301,1767170102372,-184.83391508,0.000109,2]
[400176302,1767170104980,-115.16608492,0.000109,2]
[400176303,1767170105003,-83.97626533,0.000109,2]
[400176304,1767170107219,-216.02373467,0.000109,2]
[400176305,1767170107243,-21.50626533,0.000109,2]
[400176306,1767170109804,-278.49373467,0.000109,2]
[400176307,1767170109828,-10.15149217,0.000109,2]
[400176312,1767170120745,0.01,0.00010741,2]
[400176313,1767170120769,9999.99,0.00010741,2]
[400176314,1767170122382,0.02,0.00010891,2]
[400176333,1767170144509,-798.67401172,0.00010526,2]
[400176334,1767170147138,188.46,0.0001,2]
[400176335,1767170147172,-223.1,0.00010526,2]
[400176350,1767170215411,-188.46,0.000102,2]
[400176353,1767170230371,-188.46,0.000104,2]
[400176354,1767170230945,-300.0,0.00010525,2]
[400176356,1767170232312,-271.39065936,0.00010525,2]
[400176358,1767170234356,-28.60934064,0.00010525,2]
[400176359,1767170234377,-191.79445907,0.00010526,2]
[400176361,1767170237431,-167.84760442,0.00010526,2]
[400176362,1767170238913,-309.80009235,0.00010526,2]
[400176365,1767170242589,-211.0,0.00010526,2]
[400176370,1767170247300,-216.57968593,0.00010526,2]
[400176372,1767170250258,-1116.07561655,0.00010526,2]
[400176373,1767170251628,-10000.01,0.00010526,2]
[400176374,1767170251738,-10000.01,0.00010526,2]
[400176375,1767170251827,-10000.01,0.00010526,2]
[400176376,1767170251959,-2902.92494364,0.00010526,2]
[400176377,1767170251982,-4194.16011272,0.00010526,2]
[400176381,1767170262096,-414.87972018,0.00010801,2]
[400176382,1767170265448,-241.21243559,0.00010801,2]
[400176383,1767170279759,446.88,9.99e-05,2]
[400176384,1767170280035,446.88,9.99e-05,2]
[400176400,1767170323892,5000.0,0.00010791,2]
[400176401,1767170326526,159.82,0.0001,2]
[400176402,1767170328437,159.82,0.000102,2]
[400176403,1767170330300,159.82,0.000104,2]
[400176404,1767170332170,159.82,0.000106,2]
[400176406,1767170347136,3466.97,0.00010791,2]
[400176407,1767170347158,1533.03,0.00010791,2]
[400176408,1767170370113,5000.0,0.00010791,2]
[400176427,1767170510615,160.13,0.0001,2]
[400176429,1767170511040,-249.24312033,0.00010691,2]
[400176432,1767170512517,160.13,0.000102,2]
[400176433,1767170512543,-231.11261635,0.00010691,2]
[400176434,1767170514009,-293.30857454,0.00010691,2]
[400176435,1767170516210,-215.18080952,0.00010691,2]
[400176437,1767170518375,-183.34865291,0.00010691,2]
[400176439,1767170522114,-27.80622635,0.00010691,2]
[400176440,1767170522139,-542.71139872,0.00010692,2]
[400176443,1767170525132,-233.4838352,0.00010691,2]
[400176444,1767170526578,-66.5161648,0.00010691,2]
[400176445,1767170526602,-130.64976308,0.00010692,2]
[400176446,1767170528654,-202.6124129,0.00010692,2]
[400176447,1767170530251,-319.29078007,0.00010692,2]
[400176449,1767170532298,-235.49497773,0.00010692,2]
[400176451,1767170534780,-479.8497996,0.00010692,2]
[400176454,1767170536737,-229.9173134,0.00010692,2]
[400176455,1767170542083,-190.34432457,0.00010692,2]
[400176456,1767170545327,-154.50220062,0.00010692,2]
[400176457,1767170551081,-261.89371822,0.00010692,2]
[400176458,1767170553658,-571.07787395,0.00010692,2]
[400176459,1767170558045,-159.83945472,0.00010692,2]
[400176460,1767170561740,-180.623687,0.00010692,2]
[400176461,1767170565526,-266.5161648,0.00010692,2]
[400176462,1767170567116,-238.63123618,0.00010692,2]
[400176463,1767170569241,-209.97959336,0.00010692,2]
[400176464,1767170572985,-246.00916176,0.00010692,2]
[400176465,1767170575610,-290.26193806,0.00010692,2]
[400176466,1767170582991,-89.79420126,0.00010692,2]
[400176467,1767170583013,-144.98596858,0.00010692,2]
[400176468,1767170585630,-165.87439691,0.00010692,2]
[400176469,1767170593250,5000.0,0.00010682,2]
[400176477,1767170616356,5000.0,0.00010682,2]
[400176480,1767170632060,0.01,0.00010682,2]
[400176514,1767170715380,-225.11836958,0.00010575,2]
[400176516,1767170717455,-300.0,0.00010575,2]
[400176517,1767170718917,-256.78040664,0.00010575,2]
[400176519,1767170722065,-327.31020534,0.00010575,2]
[400176521,1767170725614,-300.0,0.00010575,2]
[400176522,1767170726982,-296.11339274,0.00010575,2]
[400176524,1767170728499,-309.02438318,0.00010575,2]
[400176527,1767170733916,-410.74798259,0.00010575,2]
[400176529,1767170735962,-202.61567037,0.00010575,2]
[400176531,1767170737092,-208.60314269,0.00010575,2]
[400176532,1767170738047,-170.42599167,0.00010575,2]
[400176533,1767170739453,-326.35917413,0.00010575,2]
[400176535,1767170740991,-289.2271257,0.00010575,2]
[400176537,1767170742424,-431.74663928,0.00010575,2]
[400176539,1767170746830,-269.04311953,0.00010575,2]
[400176542,1767170750397,-175.20227849,0.00010575,2]
[400176543,1767170752408,-247.48270903,0.00010575,2]
[400176545,1767170753945,-250.35301802,0.00010575,2]
[400176546,1767170754602,500.0,0.00010565,2]
[400176552,1767170763425,1000.0,0.00028767,120]
[400176556,1767170770915,2000.0,0.00028767,120]
[400176560,1767170778675,3548.0,0.00028767,120]
[400176567,1767170807107,-3.84639102,0.00010575,2]
[400176568,1767170807128,-387.8319061,0.00010681,2]
[400176570,1767170816503,5000.0,0.00012,3]
[400176574,1767170832454,269.91084922,0.00010582,2]
[400176575,1767170832696,5000.0,0.000115,3]
[400176576,1767170840738,5000.0,0.000115,3]
[400176582,1767170856978,1733.72626403,0.00010671,2]
[400176585,1767170865511,5000.0,0.00010671,2]
[400176587,1767170893664,-5000.0,0.00010574,2]
[400176589,1767170909165,-5643.09288675,0.00010647,2]
[400176590,1767170909283,-10000.01,0.00010647,2]
[400176591,1767170909422,-10000.01,0.00010647,2]
[400176592,1767170909556,-10000.01,0.00010647,2]
[400176593,1767170909687,-10000.01,0.00010647,2]
[400176594,1767170909821,-1342.05872255,0.00010647,2]
[400176595,1767170911314,5000.0,0.00010574,2]
[400176596,1767170924009,-812.1680939,0.00010681,2]
[400176613,1767170927376,-353.71263879,0.00010687,2]
[400176616,1767170935023,5000.0,0.00010687,2]
[400176626,1767170947165,-154.9565466,0.00010692,2]
[400176627,1767170954855,-104.18308791,0.00010692,2]
[400176628,1767170954880,-55.60983959,0.00010797,2]
[400176629,1767170956653,-244.39016041,0.00010797,2]
[400176630,1767170956680,-96.12776004,0.00010798,2]
[400176631,1767170957838,5000.0,0.00010687,2]
[400176632,1767170963071,-16287.44712,0.00010798,2]
[400176633,1767170969820,-283.26051681,0.00010798,2]
[400176634,1767170972426,-237.91373876,0.00010798,2]
[400176635,1767170973071,-4213.972854,0.00010798,2]
[400176636,1767170975116,-265.30094976,0.00010798,2]
[400176637,1767170977849,-152.75810031,0.00010798,2]
[400176638,1767170980890,5000.0,0.00010788,2]
[400176639,1767170981427,-500.0,0.00010798,2]
[400176640,1767170983579,-442.22031156,0.00010798,2]
[400176641,1767170987159,-368.19767936,0.00010798,2]
[400176642,1767170991231,-639.41770508,0.00010798,2]
[400176643,1767170997150,0.01,0.00010788,2]
[400176644,1767170997172,639.40770508,0.00010788,2]
[400176648,1767171004940,5000.0,0.00010788,2]
[400176649,1767171029107,4360.60229492,0.00010788,2]
[400176650,1767171029128,639.39770508,0.00010788,2]
[400176651,1767171029251,-179.80510649,0.00010796,2]
[400176652,1767171030791,-178.0,0.00010796,2]
[400176663,1767171031526,-842.19489351,0.00010796,2]
[400176665,1767171031536,-300.0,0.00010797,2]
[400176667,1767171031545,-300.0,0.00010797,2]
[400176669,1767171031555,-300.0,0.00010797,2]
[400176670,1767171031564,-26.73848468,0.00010797,2]
[400176671,1767171031576,-545.26151532,0.00010797,2]
[400176672,1767171031585,-300.0,0.00010797,2]
[400176673,1767171031594,-3626.81359918,0.00010798,2]
[400176674,1767171031614,-90899.39760488,0.00010798,2]
[400176675,1767171031625,-544.88271919,0.00010798,2]
[400176709,1767171037698,-500.0,0.00010797,2]
[400176710,1767171037708,-410.86804351,0.00010797,2]